bitfinex/quotes_ETHUSD_20241130
["timestamp","ask_amount","ask_price","bid_price","bid_amount"]
[1732937238816,4.25523001,3633.7,3633.6,0.22384724]
[1732937239055,5.16823074,3633.7,3633.6,0.22384724]
[1732937239219,5.46212861,3633.7,3633.6,0.0860951]
[1732937239418,5.71830672,3633.7,3633.6,0.0860951]
[1732937239843,7.11649,3632.8,3632.7,0.01125295]
[1732937240045,7.11649,3632.8,3631.8,0.8167]
[1732937240046,3.303,3632.4,3632.2,0.01125295]
[1732937240258,2.75315,3632.2,3632.1,0.01125295]
[1732937240414,2.75315,3632.2,3632.1,0.310011]
[1732937242345,3.55954166,3632.2,3632.1,0.310011]
[1732937242544,4.46750095,3632.2,3632.1,0.310011]
[1732937242856,5.28129493,3632.2,3632.1,0.13778267]
[1732937243760,7.46749493,3632.2,3632.1,0.13778267]
[1732937244082,7.46749493,3632.2,3631.4,0.01125602]
[1732937244083,2.7536,3631.6,3631.4,0.01125602]
[1732937244233,2.7536,3631.6,3631.5,0.31005171]
[1732937244586,3.3036,3631.6,3631.5,0.13780076]
[1732937244748,7.11074426,3631.6,3631.5,0.13780076]
[1732937245072,7.11074426,3631.6,3631.4,3.07e-06]
[1732937245073,6.30368,3631.5,3631.4,3.07e-06]
[1732937245242,6.56011326,3631.5,3631.4,3.07e-06]
[1732937247467,6.01011326,3631.5,3631.4,3.07e-06]
[1732937247669,6.30368,3631.5,3631.4,3.07e-06]
[1732937247883,6.56023578,3631.5,3631.4,3.07e-06]
[1732937248086,6.56023725,3631.5,3631.4,3.07e-06]
[1732937248649,6.01023725,3631.5,3631.4,3.07e-06]
[1732937248854,5.75368,3631.5,3631.4,3.07e-06]
[1732937249895,6.30368,3631.5,3631.4,3.07e-06]
[1732937250214,8.36410595,3631.5,3631.4,3.07e-06]
[1732937250369,18.53436722,3631.5,3631.4,3.07e-06]
[1732937252366,18.96216207,3631.5,3631.4,3.07e-06]
[1732937253582,18.5514008,3631.5,3631.4,3.07e-06]
[1732937253858,18.96240494,3631.5,3631.4,3.07e-06]
[1732937254086,19.04528182,3631.5,3631.4,3.07e-06]
[1732937254285,0.55,3630.1,3629.3,0.13786597]
[1732937254491,0.55,3630.1,3629.2,0.7662]
[1732937254492,2.75517,3629.6,3629.4,0.2240357]
[1732937254697,2.75517,3629.6,3629.5,0.08616973]
[1732937255205,2.75517,3629.6,3628.9,0.7662]
[1732937255416,2.75532,3629.4,3629.0,0.22405947]
[1732937255569,2.7555,3629.1,3629.0,0.13788275]
[1732937255759,0.55,3630.1,3629.0,0.13788275]
[1732937255760,2.75494,3629.9,3629.1,3.52164]
[1732937255956,2.75505,3629.7,3629.2,0.59862492]
[1732937256182,2.75505,3629.7,3629.3,0.08617646]
[1732937256404,2.75505,3629.7,3629.4,0.08617646]
[1732937256611,2.7549,3629.9,3629.6,0.7662]
[1732937256612,2.75496,3629.9,3629.6,0.7662]
[1732937256813,2.75542,3629.2,3629.1,0.7662]
[1732937257103,2.75542,3629.2,3629.1,0.85238059]
[1732937257307,6.30542,3629.2,3629.1,0.08618059]
[1732937257474,4.101074,3629.2,3628.6,0.7662]
[1732937257681,2.7558,3628.7,3628.6,0.7662]
[1732937257876,2.7558,3628.7,3628.6,0.85239024]
[1732937258276,2.7558,3628.7,3628.6,0.7662]
[1732937258466,2.7791729,3628.7,3628.6,0.7662]
[1732937258822,2.75595,3628.6,3628.1,0.7662]
[1732937258966,2.75597,3628.5,3628.2,0.08619559]
[1732937259299,2.75597,3628.5,3628.3,0.08619559]
[1732937259487,2.75597,3628.5,3628.1,0.7662]
[1732937259697,2.7791729,3628.7,3628.2,0.0861978]
[1732937259698,2.7558,3628.7,3628.2,0.0861978]
[1732937259868,0.55,3629.2,3628.2,0.0861978]
[1732937259869,2.75573,3628.8,3628.3,0.0861978]
[1732937260203,2.75595,3628.5,3628.4,0.0861978]
[1732937260386,2.75595,3628.5,3628.1,0.7662]
[1732937260588,2.75595,3628.5,3628.2,0.08619441]
[1732937260805,2.75595,3628.5,3628.3,0.08619441]
[1732937260972,2.75595,3628.5,3628.1,0.7662]
[1732937261170,2.75595,3628.5,3628.2,0.0861937]
[1732937261408,2.75595,3628.5,3628.1,0.7662]
[1732937261616,2.75595,3628.5,3627.9,2.75641]
[1732937261617,3.7795,3627.7,3626.5,0.00523848]
[1732937261821,3.7795,3627.7,3625.6,0.1]
[1732937261822,0.55,3627.4,3626.6,0.08623085]
[1732937261986,2.7568,3627.4,3626.7,0.08623085]
[1732937262307,0.55,3628.0,3626.8,0.08623085]
[1732937262512,0.55,3628.0,3627.0,2.75708]
[1732937262513,2.75657,3627.7,3627.0,2.75708]
[1732937262718,2.75657,3627.7,3626.8,2.75721]
[1732937262719,2.75657,3627.7,3627.1,0.08623085]
[1732937263018,2.75651,3627.8,3626.9,0.13794805]
[1732937263169,2.75651,3627.8,3627.0,2.84324831]
[1732937263373,2.75651,3627.8,3627.1,0.08621831]
[1732937263569,2.75651,3627.8,3627.2,0.08621831]
[1732937263817,2.75658,3627.7,3627.0,2.75703]
[1732937264018,2.75658,3627.7,3627.1,0.08621449]
[1732937264390,2.75665,3627.6,3627.1,0.08621449]
[1732937264589,2.75665,3627.6,3627.2,0.08621449]
[1732937264790,2.75665,3627.6,3627.0,0.7662]
[1732937265036,2.75649,3627.8,3627.1,0.08621523]
[1732937265227,2.75649,3627.8,3627.2,0.08621523]
[1732937265405,2.7555,3629.1,3627.7,2.7565]
[1732937265618,0.0233729,3629.0,3627.8,0.08621523]
[1732937265804,2.75597,3628.5,3627.9,0.08620058]
[1732937266000,2.75588,3628.7,3627.5,2.75671]
[1732937266001,0.0233729,3628.6,3627.7,2.75651]
[1732937266233,2.75603,3628.4,3627.8,0.08619759]
[1732937266441,2.75603,3628.4,3627.9,0.08619759]
[1732937266735,2.75603,3628.4,3627.7,2.75651]
[1732937266888,2.75603,3628.4,3627.8,0.08619823]
[1732937267085,2.75603,3628.4,3627.9,0.08619823]
[1732937267332,2.75603,3628.4,3628.0,0.08619791]
[1732937267631,0.0233729,3628.6,3627.7,0.13791637]
[1732937267849,2.75629,3628.1,3627.8,0.0862001]
[1732937268131,2.75629,3628.1,3627.5,0.13792453]
[1732937268289,2.75629,3628.1,3627.6,0.08620289]
[1732937268489,2.75614,3628.3,3627.7,0.08620289]
[1732937268715,2.75584,3628.7,3627.8,0.08620289]
[1732937268927,3.55,3629.0,3627.9,0.08620289]
[1732937268928,2.75594,3628.6,3627.9,0.08620289]
[1732937269131,2.75594,3628.6,3628.0,0.08620289]
[1732937269332,2.75594,3628.6,3628.1,0.08620289]
[1732937269635,2.75594,3628.6,3628.2,0.08620289]
[1732937269923,2.75594,3628.6,3628.0,0.13792453]
[1732937269924,2.75594,3628.6,3628.3,0.08620289]
[1732937270127,0.97512832,3628.9,3628.2,3.50617]
[1732937270328,2.75558,3629.0,3628.3,0.22411424]
[1732937270532,2.75582,3628.7,3628.4,0.08618971]
[1732937270693,2.75589,3628.6,3628.5,0.08618971]
[1732937272932,2.75574,3628.8,3628.5,0.08618971]
[1732937273227,2.7558,3628.7,3628.6,0.08618971]
[1732937274004,2.7556,3629.0,3628.6,0.08618971]
[1732937274247,2.75566,3628.9,3628.7,0.22409665]
[1732937274529,2.75566,3628.9,3628.8,0.08618376]
[1732937275208,3.48837081,3628.9,3628.8,0.08618376]
[1732937276832,3.48837081,3628.9,3628.8,0.22408647]
[1732937277047,3.30556,3629.1,3628.8,0.22408647]
[1732937277199,3.30556,3629.1,3628.9,0.22408647]
[1732937277398,2.75572,3628.9,3628.6,0.17236753]
[1732937277593,2.75572,3628.9,3628.7,0.22408825]
[1732937277819,2.75572,3628.9,3628.3,2.75605]
[1732937278006,0.55,3629.2,3628.8,0.13789955]
[1732937278236,3.0,3629.2,3628.9,0.39646121]
[1732937278396,3.0,3629.2,3628.7,2.75579]
[1732937278397,2.75544,3629.2,3629.0,0.22408677]
[1732937278595,5.75544,3629.2,3629.1,0.22408677]
[1732937279265,8.98,3629.8,3629.1,0.22408677]
[1732937279266,0.42712509,3630.2,3629.2,2.75542]
[1732937279466,2.75503,3629.8,3629.3,0.22408677]
[1732937279615,2.75503,3629.8,3629.4,0.22408677]
[1732937279949,2.75503,3629.8,3629.5,0.22408677]
[1732937280160,2.75503,3629.8,3629.2,2.75542]
[1732937280161,2.75503,3629.8,3629.6,0.22408677]
[1732937280459,2.75503,3629.8,3629.7,0.22408677]
[1732937280770,3.01179713,3629.8,3629.7,0.22408677]
[1732937281062,2.75503,3629.8,3629.7,0.22402861]
[1732937281260,3.01179632,3629.8,3629.7,0.22402861]
[1732937281940,0.25676632,3629.8,3629.7,0.22402861]
[1732937282114,2.7782729,3629.9,3629.7,0.22402861]
[1732937282318,2.7782729,3629.9,3629.8,0.22402861]
[1732937282536,3.03520333,3629.9,3629.8,0.22402861]
[1732937283318,4.8753151,3629.9,3629.8,0.08616485]
[1732937283650,4.46419966,3629.9,3629.8,0.08616485]
[1732937283850,2.75522,3629.5,3629.0,0.75]
[1732937284014,2.75522,3629.5,3629.1,0.09145183]
[1732937284215,0.25719262,3629.4,3629.2,0.22404994]
[1732937284415,0.25719262,3629.4,3629.0,3.50552]
[1732937284416,2.75513,3629.6,3629.3,0.2293302]
[1732937284615,2.75513,3629.6,3629.4,0.22404994]
[1732937284849,2.75513,3629.6,3629.5,0.22404994]
[1732937285226,3.01229138,3629.6,3629.5,0.22404994]
[1732937285432,3.01225266,3629.6,3629.5,0.22404994]
[1732937286253,0.25712266,3629.6,3629.5,0.22404994]
[1732937286559,2.75512,3629.6,3629.5,0.22404994]
[1732937286772,3.01219827,3629.6,3629.5,0.22404994]
[1732937287278,2.75512,3629.6,3629.5,0.22404994]
[1732937287492,3.01221487,3629.6,3629.5,0.22404994]
[1732937287970,2.75512,3629.6,3629.5,0.22404994]
[1732937288325,3.01214724,3629.6,3629.5,0.39638383]
[1732937288532,2.75512,3629.6,3629.5,0.39638383]
[1732937288951,2.75512,3629.6,3629.5,0.40166409]
[1732937289140,2.75512,3629.6,3629.5,0.39638383]
[1732937290073,3.01212258,3629.6,3629.5,0.39638383]
[1732937290275,3.59117513,3629.6,3629.5,0.39638383]
[1732937290832,3.33417255,3629.6,3629.5,0.22404994]
[1732937291035,3.59116634,3629.6,3629.5,0.3964124]
[1732937291458,3.59116634,3629.6,3629.5,0.22405918]
[1732937291673,3.59116634,3629.6,3629.5,0.39641133]
[1732937292372,3.59116634,3629.6,3629.5,0.08617661]
[1732937292678,4.00235641,3629.6,3629.5,0.08617661]
[1732937294311,4.00235641,3629.6,3629.0,0.7871]
[1732937294577,2.75529,3629.4,3629.1,0.22405633]
[1732937294740,0.25699379,3629.3,3629.2,0.22405633]
[1732937295363,3.01234379,3629.3,3629.2,0.22405633]
[1732937299680,0.25699379,3629.3,3629.2,0.22405633]
[1732937300061,3.01234379,3629.3,3629.2,0.22405633]
[1732937300378,0.25699379,3629.3,3629.2,0.22405633]
[1732937300538,0.25699379,3629.3,3629.2,2.97947633]
[1732937300884,2.75509,3629.7,3629.2,0.8795485]
[1732937301116,0.25769727,3629.6,3629.3,0.22405633]
[1732937301390,0.25769727,3629.5,3629.4,0.22403457]
[1732937303565,3.01289727,3629.5,3629.4,0.22403457]
[1732937304985,0.25769727,3629.5,3629.4,0.22403457]
[1732937305567,0.25769727,3629.5,3629.4,0.39636669]
[1732937306799,3.01289727,3629.5,3629.4,0.39636669]
[1732937307185,3.42571473,3629.5,3629.4,0.39636669]
[1732937308003,3.01289727,3629.5,3629.4,0.39636669]
[1732937308201,3.42571473,3629.5,3629.4,0.39636669]
[1732937308502,3.42571473,3629.5,3629.4,0.39639598]
[1732937310398,4.0437952,3629.5,3629.4,0.39639598]
[1732937311157,4.5937952,3629.5,3629.4,0.39639598]
[1732937311368,4.5937952,3629.5,3629.4,0.2240499]
[1732937314101,2.7555,3629.2,3628.7,0.766]
[1732937314267,5.511,3629.2,3628.7,0.766]
[1732937314465,2.7555,3629.2,3628.7,0.766]
[1732937314690,2.75564,3629.0,3628.7,0.766]
[1732937315299,2.7555,3629.2,3628.7,0.766]
[1732937315300,2.7555,3629.2,3628.8,0.40171089]
[1732937315804,0.55,3629.3,3628.8,0.40171089]
[1732937316097,3.30539,3629.3,3628.8,0.40171089]
[1732937316914,2.7553,3629.4,3628.9,2.75564]
[1732937317920,2.7553,3629.4,3628.8,0.40171089]
[1732937318127,2.7553,3629.4,3628.8,3.15741089]
[1732937318433,2.75521,3629.5,3628.9,2.7556]
[1732937319225,2.75528,3629.4,3628.9,2.7556]
[1732937319389,6.30518,3629.6,3628.9,2.7556]
[1732937319596,3.55,3629.6,3629.1,2.7555]
[1732937319782,0.41314198,3629.5,3629.2,0.31021614]
[1732937319995,0.25821374,3629.4,3629.3,0.13787384]
[1732937320196,0.25821374,3629.4,3629.3,0.39638729]
[1732937320432,0.25821374,3629.4,3629.3,1.20718729]
[1732937320934,0.67133941,3629.4,3629.3,1.20718729]
[1732937321287,0.25821374,3629.4,3629.3,1.21247172]
[1732937321687,0.25821374,3629.4,3629.3,1.20718729]
[1732937321933,0.67133332,3629.4,3629.3,1.20718729]
[1732937322090,3.42660332,3629.4,3629.3,1.20718729]
[1732937322442,3.42660298,3629.4,3629.3,0.39638729]
[1732937322728,3.42660298,3629.4,3629.3,0.39638535]
[1732937324292,0.67133298,3629.4,3629.3,0.39638535]
[1732937325421,0.67133298,3629.4,3629.3,3.82408893]
[1732937325613,0.25820499,3629.4,3629.3,3.15702575]
[1732937325809,0.25820499,3629.4,3629.3,3.15173535]
[1732937326833,0.41305114,3629.8,3629.3,2.75535]
[1732937327033,0.25815693,3629.7,3629.4,0.40164154]
[1732937327199,0.25815693,3629.6,3629.5,0.39635419]
[1732937330058,0.25815693,3629.6,3629.5,4.54377834]
[1732937330286,0.4129089,3630.3,3630.0,2.75481]
[1732937330556,0.25796971,3630.2,3630.1,0.39635419]
[1732937331912,0.25796971,3630.2,3630.1,3.95209419]
[1732937332116,0.4129089,3631.0,3630.5,2.75441]
[1732937332426,2.75422,3630.8,3630.6,0.22402628]
[1732937332630,3.1671189,3630.8,3630.7,0.22402628]
[1732937332839,3.01188748,3630.8,3630.7,0.22402628]
[1732937333030,0.25767748,3630.8,3630.7,0.22402628]
[1732937333416,0.25755248,3630.8,3630.7,0.22402628]
[1732937334323,3.35413213,3630.8,3630.7,0.22402628]
[1732937334865,3.35413213,3630.8,3630.7,0.08616395]
[1732937335219,3.35413213,3630.8,3630.7,0.22399256]
[1732937335523,3.35413213,3630.8,3630.7,0.08616395]
[1732937336774,3.90413213,3630.8,3630.7,0.08616395]
[1732937337060,2.75437,3630.6,3630.1,0.97329564]
[1732937337359,2.75437,3630.6,3630.2,0.22398202]
[1732937337537,2.75437,3630.6,3630.3,0.22398202]
[1732937337869,2.75437,3630.6,3630.1,0.97329564]
[1732937337870,2.7778629,3630.5,3630.4,0.08614693]
[1732937338161,3.01180778,3630.5,3630.4,0.22399049]
[1732937338322,3.01180778,3630.5,3630.4,0.08614693]
[1732937339056,3.03518068,3630.5,3630.4,0.08614693]
[1732937339261,3.01180778,3630.5,3630.4,0.08614693]
[1732937339480,2.75449,3630.5,3630.4,0.22398545]
[1732937340163,3.01176926,3630.5,3630.4,0.08614693]
[1732937340368,0.7589,3630.9,3630.4,0.08614693]
[1732937340369,3.51307,3630.9,3630.4,0.22398543]
[1732937340544,3.51307,3630.9,3630.5,0.22396715]
[1732937340545,3.01147832,3630.8,3630.5,0.22396715]
[1732937340745,3.01147832,3630.8,3630.6,0.22396715]
[1732937340969,2.75423,3630.8,3630.7,0.08614121]
[1732937341154,2.7776029,3630.8,3630.7,0.08614121]
[1732937341359,2.7776029,3630.8,3630.7,0.22396581]
[1732937341559,3.93328729,3630.8,3630.7,0.08614121]
[1732937341840,1.43629183,3630.8,3630.7,0.08614121]
[1732937342051,4.19050183,3630.8,3630.7,0.08614121]
[1732937342749,0.25723454,3630.8,3630.7,0.08614121]
[1732937342978,3.7593,3631.3,3630.7,0.22397079]
[1732937342979,3.0,3631.1,3630.7,0.22397079]
[1732937343218,0.25722582,3631.0,3630.8,0.22397079]
[1732937343383,0.25722582,3631.0,3630.9,0.08614121]
[1732937343557,0.25721009,3631.0,3630.9,0.08614121]
[1732937343969,2.75378,3631.4,3630.9,2.97808663]
[1732937344171,3.51292,3631.6,3630.9,2.97808663]
[1732937344172,0.25719143,3631.3,3631.1,0.8256]
[1732937344454,2.75364,3631.6,3631.2,0.22395663]
[1732937344771,2.75364,3631.6,3631.3,0.22395663]
[1732937345081,2.75364,3631.6,3631.4,0.08614121]
[1732937345277,2.75364,3631.6,3631.5,0.08614121]
[1732937345479,2.75345,3631.8,3631.5,0.08614121]
[1732937345480,0.55,3631.7,3631.5,0.08614121]
[1732937345677,0.55,3631.7,3631.6,0.08614121]
[1732937345678,3.3036,3631.7,3631.6,0.08614121]
[1732937346718,3.3036,3631.7,3631.6,0.0861213]
[1732937348098,3.0,3632.0,3631.6,0.0861213]
[1732937348405,2.75323,3632.1,3631.7,0.0861213]
[1732937348703,2.75309,3632.3,3631.8,0.0861213]
[1732937348904,2.75317,3632.2,3631.9,0.0861213]
[1732937349209,3.55225,3632.5,3632.0,0.0861213]
[1732937349372,3.18050185,3633.3,3631.8,0.13779408]
[1732937349373,2.75285,3632.6,3632.1,0.0861213]
[1732937349580,2.75285,3632.6,3631.8,3.25603449]
[1732937349581,2.75285,3632.6,3632.2,0.0861213]
[1732937349783,2.75272,3632.8,3632.3,0.0861213]
[1732937350084,2.75282,3632.7,3632.4,0.0861213]
[1732937350264,2.75282,3632.7,3632.1,2.89101408]
[1732937350265,2.75282,3632.7,3632.5,0.08609629]
[1732937350466,2.75282,3632.7,3632.1,2.75321]
[1732937350467,5.50566,3632.7,3632.1,2.75321]
[1732937350776,2.75248,3633.1,3632.2,3.76131757]
[1732937350980,2.75259,3633.0,3632.3,2.97684713]
[1732937351195,3.383027,3633.0,3632.4,0.22384713]
[1732937351514,2.75206,3633.7,3632.5,0.08609815]
[1732937351515,2.75244,3633.2,3632.5,0.08609815]
[1732937351697,3.31384802,3633.5,3632.6,0.08609815]
[1732937351896,0.9541668,3633.4,3632.7,0.84289815]
[1732937352211,0.9541668,3633.4,3632.8,0.08609815]
[1732937352361,2.75239,3633.2,3632.9,0.08609815]
[1732937352703,2.75239,3633.2,3632.7,0.7568]
[1732937352915,2.75226,3633.4,3632.8,0.0860854]
[1732937353090,2.75244,3633.2,3632.7,0.7568]
[1732937353262,2.75244,3633.2,3632.8,0.08608498]
[1732937353459,2.75244,3633.2,3632.9,0.08608498]
[1732937353683,2.75244,3633.2,3632.7,0.7568]
[1732937353900,3.33222347,3633.2,3632.8,0.08608512]
[1732937354143,3.33222347,3633.2,3632.9,0.08608512]
[1732937354431,3.33222347,3633.2,3632.7,0.7568]
[1732937354641,3.33222347,3633.2,3632.8,0.08608505]
[1732937354642,0.57978347,3633.2,3632.8,0.08608505]
[1732937354774,0.55,3633.3,3632.9,0.08608505]
[1732937354975,0.55,3633.3,3633.0,0.08608505]
[1732937355190,0.55,3633.3,3632.8,2.75269]
[1732937355398,3.30233,3633.3,3632.9,0.08608366]
[1732937355598,3.30225,3633.4,3633.0,0.08608366]
[1732937355875,3.30225,3633.4,3633.1,0.08608366]
[1732937355876,2.7757629,3633.3,3633.1,0.08608366]
[1732937356075,3.3257629,3633.3,3633.2,0.08608366]
[1732937356307,2.7757629,3633.3,3632.8,0.13773193]
[1732937356519,2.75239,3633.3,3632.9,0.08608102]
[1732937356674,2.75239,3633.3,3633.0,0.08608102]
[1732937356875,2.75239,3633.3,3633.1,0.08608102]
[1732937356876,0.55,3633.2,3633.1,0.08608102]
[1732937357373,3.04530469,3633.5,3633.1,0.08608196]
[1732937357570,3.04530469,3633.5,3633.2,0.08608196]
[1732937357571,0.55,3633.4,3633.2,0.08608196]
[1732937357774,3.30229,3633.4,3633.3,0.08608196]
[1732937358010,3.66182047,3633.4,3633.3,0.08608196]
[1732937358421,0.90953047,3633.4,3633.3,0.08608196]
[1732937358710,0.29313469,3633.5,3633.3,0.08608196]
[1732937358711,3.30223,3633.5,3633.3,0.08607679]
[1732937358902,3.30223,3633.5,3633.0,0.13773114]
[1732937359215,0.55,3633.5,3633.1,0.22380956]
[1732937359416,0.55,3633.5,3633.2,0.22380956]
[1732937359617,2.75194,3633.8,3633.3,0.22380956]
[1732937359914,0.55,3633.7,3633.4,0.22380956]
[1732937360224,0.55,3633.7,3633.5,0.08607842]
[1732937360512,0.55,3633.7,3633.6,0.08607842]
[1732937360719,0.55,3633.8,3633.6,0.08607842]
[1732937361018,3.30201,3633.7,3633.4,0.1377128]
[1732937361222,0.55,3633.8,3633.5,0.0860693]
[1732937361428,3.302,3633.8,3633.6,0.0860693]
[1732937361596,3.302,3633.8,3633.7,0.0860693]
[1732937361803,0.55,3633.8,3633.7,0.0860693]
[1732937362210,3.30194,3633.8,3633.7,0.0860693]
[1732937364450,8.98,3635.4,3633.8,0.7568]
[1732937364598,0.25554427,3635.3,3634.5,0.7568]
[1732937364801,2.75097,3635.1,3634.6,0.22377855]
[1732937365107,0.7993,3635.5,3634.7,0.22377855]
[1732937365108,2.75108,3635.0,3634.7,0.22377855]
[1732937365337,2.75108,3635.0,3634.8,0.22377855]
[1732937365545,2.75108,3635.0,3634.9,0.22377855]
[1732937365846,2.75108,3635.0,3634.9,0.0860693]
[1732937366008,2.75108,3635.0,3634.9,0.22373516]
[1732937366207,3.30108,3635.0,3634.9,0.22373516]
[1732937367103,0.55,3635.0,3634.9,0.22373516]
[1732937367303,3.30103,3635.0,3634.9,0.22373516]
[1732937368006,3.30103,3635.0,3634.9,0.22370051]
[1732937368898,2.75088,3635.2,3634.9,0.22370051]
[1732937369144,0.55,3635.1,3635.0,0.22370051]
[1732937369296,0.55,3635.1,3635.0,0.39577783]
[1732937369499,3.30095,3635.1,3635.0,0.39577783]
[1732937369732,3.30095,3635.1,3635.0,0.22370051]
[1732937370750,3.30103,3635.0,3634.7,0.17207709]
[1732937371042,3.30103,3635.0,3634.8,0.39577782]
[1732937371345,3.30103,3635.0,3634.9,0.39577782]
[1732937371643,2.75116,3634.9,3634.5,0.7568]
[1732937371813,3.30103,3635.0,3634.6,0.17207885]
[1732937372016,3.30103,3635.0,3634.7,0.39578135]
[1732937372215,2.75111,3634.9,3634.8,0.39578135]
[1732937372439,3.30111,3634.9,3634.8,0.39578135]
[1732937374845,3.30105,3635.0,3634.8,0.39578135]
[1732937375013,3.30105,3635.0,3634.9,0.39578135]
[1732937376821,3.30105,3635.0,3634.5,0.7568]
[1732937377029,3.30105,3635.0,3634.5,1.382786]
[1732937377786,3.30105,3635.0,3634.9,0.00445206]
[1732937378467,3.30105,3635.0,3634.6,0.39578023]
[1732937378762,3.30105,3635.0,3634.9,0.40022543]
[1732937378911,3.30105,3635.0,3634.9,0.26256209]
[1732937379118,3.30105,3635.0,3634.9,0.3957797]
[1732937381967,3.29984053,3635.0,3634.9,0.3957797]
[1732937383444,3.29552255,3635.0,3634.9,0.3957797]
[1732937384059,2.7512,3634.8,3634.5,0.7568]
[1732937384381,2.7512,3634.8,3634.6,0.7466166]
[1732937384538,2.7512,3634.8,3634.7,0.3957806]
[1732937387661,2.7512,3634.8,3634.6,0.350836]
[1732937387989,2.7512,3634.8,3634.7,0.3957801]
[1732937391511,3.00843247,3634.8,3634.7,0.3957801]
[1732937394406,2.80181224,3634.8,3634.7,0.3957801]
[1732937394776,2.80263162,3634.8,3634.7,0.3957875]
[1732937398389,2.80263011,3634.8,3634.7,0.3957875]
[1732937398587,3.35263011,3634.8,3634.7,0.3957875]
[1732937398912,3.35263011,3634.8,3634.1,0.7901]
[1732937398913,3.30133,3634.6,3634.5,0.00430294]
[1732937399099,2.75174,3634.1,3633.8,0.7901]
[1732937399414,0.25804245,3634.0,3633.5,0.7901]
[1732937399586,2.75174,3634.1,3633.5,3.99243796]
[1732937399785,0.25787609,3634.0,3633.5,3.99243796]
[1732937400014,2.75174,3634.1,3633.5,3.99243796]
[1732937400320,0.25787654,3634.0,3633.6,2.75207]
[1732937400525,0.41257845,3634.4,3633.7,0.3992398]
[1732937400850,3.00942874,3634.3,3633.7,0.3992398]
[1732937401030,2.75157,3634.3,3633.7,0.3992398]
[1732937401326,0.55,3634.7,3633.7,0.3992398]
[1732937401327,2.75171,3634.1,3633.7,0.3992398]
[1732937401476,2.75171,3634.1,3633.6,3.71196956]
[1732937401695,2.75171,3634.1,3633.6,0.95993956]
[1732937401910,2.75156,3634.3,3633.6,3.71200956]
[1732937402127,2.75156,3634.3,3633.7,2.75199]
[1732937402506,2.75156,3634.3,3633.6,3.71200956]
[1732937402507,2.75166,3634.2,3633.6,0.95993956]
[1732937402709,2.75166,3634.2,3633.6,4.16219552]
[1732937403027,0.55,3634.7,3633.6,0.45022596]
[1732937403181,2.75175,3634.1,3633.5,3.54224]
[1732937403607,2.75156,3634.3,3633.5,0.7901]
[1732937403824,2.75156,3634.3,3634.2,0.00423729]
[1732937404116,2.75149,3634.4,3633.8,2.75186]
[1732937404498,2.75156,3634.3,3634.2,0.00423056]
[1732937404693,2.75149,3634.4,3634.2,0.00423056]
[1732937404904,2.75156,3634.3,3634.2,0.00423056]
[1732937405107,2.75149,3634.4,3634.2,0.00423056]
[1732937405278,2.75149,3634.4,3634.1,0.79433056]
[1732937405719,2.75156,3634.3,3634.1,0.00423056]
[1732937406419,2.75156,3634.3,3634.0,0.00423056]
[1732937406922,2.75164,3634.2,3634.1,0.17210724]
[1732937407629,2.75202,3633.7,3633.5,0.7786]
[1732937407928,2.75202,3633.7,3632.7,0.2754]
[1732937407929,2.75201,3633.7,3633.6,0.17212082]
[1732937408091,3.55965613,3633.7,3633.6,0.17212082]
[1732937408278,3.30201,3633.7,3633.4,0.17212082]
[1732937408487,2.7521,3633.6,3633.0,2.75674446]
[1732937408794,2.7521,3633.6,3633.1,0.17637795]
[1732937408994,2.7521,3633.6,3633.2,0.31409495]
[1732937409181,3.30202,3633.7,3633.3,0.30987049]
[1732937409381,2.75219,3633.5,3633.4,0.30987049]
[1732937410307,2.75219,3633.5,3633.4,0.137717]
[1732937410925,2.75219,3633.5,3633.4,0.3959438]
[1732937411126,2.75219,3633.5,3633.4,0.22379031]
[1732937412501,3.30202,3633.7,3633.4,0.22379031]
[1732937412688,2.75187,3633.9,3633.0,2.75670446]
[1732937412689,0.55,3633.8,3633.5,0.22379031]
[1732937412883,2.75209,3633.6,3633.1,0.17215349]
[1732937413086,2.75209,3633.6,3633.2,0.3959358]
[1732937413402,2.75209,3633.6,3633.3,0.22378231]
[1732937413609,2.75216,3633.5,3633.4,0.22378231]
[1732937414626,2.75216,3633.5,3633.4,0.22379032]
[1732937416128,3.30216,3633.5,3633.4,0.22379032]
[1732937416429,4.05296,3633.5,3633.4,0.22379032]
[1732937417239,4.05296,3633.5,3633.4,0.0860732]
[1732937417730,4.05296,3633.5,3633.4,0.22379032]
[1732937417889,4.05296,3633.5,3633.4,0.0860732]
[1732937419037,2.75238,3633.3,3632.9,0.7786]
[1732937419201,3.3256329,3633.4,3632.9,0.7786]
[1732937419412,2.75267,3632.9,3632.7,0.8133]
[1732937419608,2.75267,3632.9,3632.4,0.8133]
[1732937419815,2.75255,3633.0,3632.4,0.8133]
[1732937419989,2.75255,3633.0,3632.5,0.30990315]
[1732937420195,2.75255,3633.0,3632.6,0.22381894]
[1732937420427,2.75255,3633.0,3632.7,0.22381894]
[1732937420628,2.75255,3633.0,3632.8,0.22381894]
[1732937420805,2.75255,3633.0,3632.9,0.22381894]
[1732937421002,2.75248,3633.1,3632.9,0.22381894]
[1732937421251,3.30242,3633.2,3633.0,0.22381894]
[1732937421409,3.30242,3633.2,3633.1,0.08608421]
[1732937421817,3.30242,3633.2,3633.1,0.08608299]
[1732937422026,4.13112,3633.2,3633.1,0.08608299]
[1732937422416,3.30242,3633.2,3633.1,0.08608299]
[1732937423044,3.30200869,3633.4,3633.1,0.08608299]
[1732937423338,2.7756829,3633.3,3633.2,0.22381578]
[1732937423712,4.68930427,3633.3,3633.2,0.08608299]
[1732937423916,2.75284,3632.6,3632.5,0.13774303]
[1732937424151,2.75284,3632.6,3632.5,0.22383693]
[1732937425266,0.55,3632.7,3632.5,0.22383693]
[1732937425426,0.55,3632.7,3632.6,0.22383693]
[1732937425813,2.75254,3633.0,3632.6,1.03713693]
[1732937426104,2.1284727,3633.9,3632.6,1.03713693]
[1732937426105,3.5642,3633.6,3632.9,2.75262]
[1732937426277,2.75217,3633.5,3633.0,0.22383693]
[1732937426415,2.75217,3633.5,3633.1,0.22383693]
[1732937426617,2.75217,3633.5,3633.2,0.22383693]
[1732937426818,2.75217,3633.5,3633.3,0.22383693]
[1732937427122,2.75217,3633.5,3633.4,0.22383693]
[1732937427337,0.55008924,3633.7,3633.4,0.22383693]
[1732937427509,2.75209,3633.6,3633.5,0.22383693]